[Event "Slovakian ECo-C Extraliga 2024-25"]
[Site "Slovakia"]
[Date "2025.01.19"]
[Round "4.2"]
[White "Ftacnik Lubomir"]
[Black "Ponizil Cyril"]
[Result "*"]
[Annotator "TA"]
[ECO "D72"]
[WhiteElo "2440"]
[BlackElo "2465"]
[PlyCount "36"]
[EventDate "2024.09.12"]
[EventType "team-tourn"]
[EventCountry "SVK"]
[SourceTitle "playchess.com"]
[Source "ChessBase"]
[SourceQuality "1"]
[TimeControl "5400+30"]

{[%evp 14,19,0,0,11,14,12,17]} 1. c4 {[%emt 0:00:04]} Nf6 {[%emt 0:00:49]} 2. g3 {[%emt 0:00:04]} g6 {[%emt 0:02:38]} 3. Bg2 {[%emt 0:00:15]} Bg7 {[%emt 0:00:12]} 4. d4 {[%emt 0:00:06]} d5 {[%emt 0:00:36]} 5. cxd5 {[%emt 0:00:07]} Nxd5 {[%emt 0:00:07]} 6. e4 {[%emt 0:00:09]} Nb6 {[%emt 0:00:29]} 7. Ne2 {[%emt 0:00:07]} c5 {[%emt 0:00:55]} 8. d5 {[%emt 0:00:05] The position is equal.} e6 {[%emt 0:00:15] D72: Fianchetto Grünfeld: 5 cxd5 Nxd5 6 e4 Nb6 (without Nf3).} 9. O-O {[%emt 0:00:10]} O-O {[%emt 0:00:33] OK:         	White=1     	Black=1} 10. Nec3 {[%emt 0:00:21] The main line 10.Nec3 scores better than 10.Nbc3. Not much happened in this game.   Weighted Error Value: White=0.00 (flawless) /Black=0.05 (flawless)} Na6 $146 11. h4 exd5 12. exd5 Bf5 13. Bg5 Qd7 14. Nd2 h6 15. Bf4 Nb4 16. Nde4 Bxe4 17. Nxe4 N4xd5 18. Bd6 Bxb2 {½-½ Kazhgaleyev,M (2458)-Puranik,A (2634) Aix en Provence Dole op 2nd 2024 (7)} *

[Event "Slovakian ECo-C Extraliga 2024-25"]
[Site "Slovakia"]
[Date "2025.01.19"]
[Round "4.2"]
[White "Delgerdalai, Bayarjavkhlan"]
[Black "Bochnicka, Vladimir"]
[Result "1-0"]
[Annotator "TA"]
[ECO "D30"]
[WhiteElo "2331"]
[BlackElo "2345"]
[PlyCount "167"]
[EventDate "2024.09.12"]
[EventType "team-tourn"]
[EventCountry "SVK"]
[SourceTitle "playchess.com"]
[Source "ChessBase"]
[SourceQuality "1"]
[TimeControl "5400+30"]

{[%evp 63,167,150,162,156,313,305,323,278,298,0,326,301,416,271,423,274,270,260,379,383,397,295,287,287,275,267,245,253,295,158,354,318,371,228,218,239,266,8,8,8,8,0,0,0,0,0,57,57,153,153,153,153,145,101,242,151,235,210,516,584,544,546,707,653,758,503,333,0,828,827,773,741,1852,1882,2343,1589,2766,2352,2148,1912,29968,29969,29970,29971,29971,29972,29975,29975,29975,29976,29972,29964,29941,29938,29939,12850,29970,29972,29961,29965,29957,4618,29980,29980,29979,29980]} 1. d4 {[%emt 0:00:06]} d5 {[%emt 0:00:30]} 2. c4 {[%emt 0:00:13]} e6 {[%emt 0:00:14]} 3. Nf3 {[%emt 0:00:13]} c5 {[%emt 0:01:54]} 4. e3 {[%emt 0:01:58]} Nf6 {[%emt 0:00:25]} 5. cxd5 {[%emt 0:00:27]} exd5 {[%emt 0:00:24]} 6. Bb5+ {[%emt 0:00:07]} Nc6 {[%emt 0:05:18]} 7. O-O {[%emt 0:04:00]} Be7 {[%emt 0:04:17]} 8. b3 {[%emt 0:13:26]} O-O {[%emt 0:00:43]} 9. dxc5 {[%emt 0:20:16]} Bxc5 {[%emt 0:01:41]} 10. Bb2 {[%emt 0:03:54]} Bg4 {[%emt 0:06:15]} 11. Bxc6 {[%emt 0:07:04]} bxc6 {[%emt 0:02:13]} 12. Qc2 {[%emt 0:03:40]} Qe7 {[%emt 0:16:54]} 13. Nbd2 {[%emt 0:16:43]} Bxf3 {[%emt 0:10:46]} 14. Bxf6 {[%emt 0:01:12]} Qxf6 {[%emt 0:01:08]} 15. Qxc5 {[%emt 0:03:53]} Bg4 {[%emt 0:00:43]} 16. Rac1 {[%emt 0:02:28]} Rfc8 {[%emt 0:04:36]} 17. Rc3 {[%emt 0:06:49]} Qg6 {[%emt 0:06:02]} 18. Rfc1 {[%emt 0:01:46]} Bh3 {[%emt 0:02:32]} 19. g3 {[%emt 0:00:04]} h6 {[%emt 0:01:09]} 20. Qd4 {[%emt 0:00:37]} Bg4 {[%emt 0:02:17]} 21. Rc5 {[%emt 0:02:05]} Qe6 {[%emt 0:11:13]} 22. Qa4 {[%emt 0:05:40]} Bh3 {[%emt 0:08:38]} 23. Rxc6 {[%emt 0:02:10]} Kh7 {[%emt 0:02:31]} 24. Qa6 {[%emt 0:02:22]} Qg6 {[%emt 0:05:41]} 25. b4 {[%emt 0:01:04]} Rab8 {[%emt 0:03:58]} 26. a3 {[%emt 0:00:38]} Rc7 {[%emt 0:00:55]} 27. R1c5 {[%emt 0:00:29]} Rxc6 {[%emt 0:00:23]} 28. Rxc6 {[%emt 0:00:29]} Qh5 {[%emt 0:00:29]} 29. Rc1 {[%emt 0:00:31]} Rb6 {[%emt 0:00:31]} 30. Qd3+ {[%emt 0:00:23]} Rg6 {[%emt 0:00:19]} 31. f3 {[%emt 0:00:32]} Qe5 {[%emt 0:00:16]} 32. Kf2 {[%emt 0:00:33]} Bf5 {[%emt 0:00:53]} 33. Qd4 {[%emt 0:00:29]} Qe6 $2 {[%emt 0:00:29]} (33... Qxd4 $16 34. exd4 Ra6) 34. Rc5 $18 {[%emt 0:00:30]} (34. Qxa7 Qe8 35. Qc5 Qe5) 34... Qa6 {[%emt 0:00:39]} 35. Ra5 {[%emt 0:00:28]} (35. Qxd5 Be6 36. Qd4 Rg5 37. Rxg5 hxg5 $16) 35... Qc8 {[%emt 0:00:16]} 36. Rc5 {[%emt 0:00:30]} (36. Rxa7 Qc2 37. Ke2 (37. Rxf7 $2 Bd3 $19) 37... Qc1 38. Rxf7 (38. Qxd5 Be6 $18) 38... Be6) (36. Qxd5 Rf6 37. Rc5 (37. Rxa7 Qc1 $16) 37... Qa6 $16) 36... Qa6 $1 {[%emt 0:00:13]} 37. Rxd5 {[%emt 0:00:33]} (37. Qxd5 Be6 38. Qd4 Qxa3 $18) (37. Ra5 Qc8 38. Rc5 (38. Rxd5 Rc6 $18) (38. Rxa7 Rf6 $18) (38. Qxd5 Rf6 $18) 38... Rc6 39. Qxd5 Rxc5 40. bxc5 (40. Qxc5 Qd7 $18) 40... Be6 41. Qe4+ Kg8 $16) 37... Bc2 {[%emt 0:01:00]} 38. Qc4 {[%emt 0:00:34]} Qe6 {[%emt 0:00:20]} (38... Qxc4 {might work better.} 39. Nxc4 Rf6) 39. g4 {[%emt 0:00:28]} Ba4 {[%emt 0:00:26]} 40. Rd4 {[%emt 0:00:31]} Qf6 {[%emt 0:00:35]} (40... Qxc4 $142 41. Rxc4 Ra6) 41. b5 $18 {[%emt 0:00:00]} Bd1 {[%emt 0:00:00]} 42. Qf1 {[%emt 0:00:00]} Bc2 {[%emt 0:00:00]} 43. Qc1 {[%emt 0:00:00]} Qh4+ {[%emt 0:00:00]} 44. Kg2 {[%emt 0:00:00]} Bf5 {[%emt 0:00:00]} 45. Nc4 {[%emt 0:01:54]} f6 {[%emt 0:00:00]} 46. Nd6 {[%emt 0:00:46]} (46. h3 $18) 46... Be6 $2 {[%emt 0:00:00]} (46... Bxg4 $16 47. fxg4 (47. Rxg4 Rxg4+ 48. fxg4 Qxg4+ 49. Kf2 Qh4+ 50. Kf1 Qh3+ 51. Ke1 Qh4+ 52. Kd1 Qh5+ 53. Ke1 Qh4+ 54. Kf1 Qh3+ 55. Kg1 Qg4+ 56. Kh1 Qf3+ 57. Kg1 Qg4+ 58. Kh1 Qf3+ 59. Kg1 Qg4+ $11) 47... Rxg4+ 48. Kh1 Rxd4 49. Qc2+ (49. exd4 Qxd4 50. Qc2+ Kh8 $18) 49... Kh8 50. exd4 Qxd4) 47. Qc2 {[%emt 0:00:09]} Qg5 {[%emt 0:00:00]} 48. Qe4 {[%emt 0:01:02]} f5 {[%emt 0:00:00]} 49. Qe5 {[%emt 0:00:39]} h5 {[%emt 0:00:00]} 50. h3 $2 {[%emt 0:00:24]} (50. h4 Qxh4 51. Nxf5 Qe1 $11) ({Better is} 50. a4 $18) 50... fxg4 $11 {[%emt 0:00:20]} 51. Qxg5 {[%emt 0:00:22]} gxh3+ {[%emt 0:00:32]} 52. Kh1 {[%emt 0:00:26]} Rxg5 {[%emt 0:00:03]} 53. f4 {[%emt 0:00:36]} Rc5 {[%emt 0:01:30]} 54. Ne4 {[%emt 0:00:40]} Bd5 {[%emt 0:01:31]} (54... Rc1+ $11 55. Kh2 Bg4) 55. a4 $1 $14 {[%emt 0:00:28]} ({Much weaker is} 55. Kh2 Bxe4 56. Rxe4 Rxb5 $11) 55... Kg6 {[%emt 0:00:59]} (55... Bxe4+ $14 56. Rxe4 g5 (56... Rc2 $2 57. Re7 $18)) 56. Kh2 $16 {[%emt 0:00:06]} Bxe4 {[%emt 0:01:16]} 57. Rxe4 {[%emt 0:00:02]} Kf6 {[%emt 0:02:13]} ({Don't go for} 57... Kf5 $2 58. Re5+ (58. Re7 Kg4 $11) 58... Rxe5 59. fxe5 Kxe5 60. a5 $18) 58. Kxh3 {[%emt 0:00:45]} g6 {[%emt 0:00:09]} (58... g5 $16 59. fxg5+ Rxg5) 59. Kg3 {[%emt 0:01:01]} Rc3 {[%emt 0:00:27]} (59... g5 $16 60. fxg5+ Rxg5+ 61. Kf2 Rc5) 60. a5 {[%emt 0:00:41]} Ra3 $2 {[%emt 0:00:38]} (60... g5 61. fxg5+ Kxg5) 61. a6 $18 {[%emt 0:00:13]} Rb3 {[%emt 0:00:14]} 62. Re5 {[%emt 0:00:08]} Ra3 {[%emt 0:00:41]} 63. Kf3 {[%emt 0:00:31]} Rb3 {[%emt 0:00:04]} 64. Kf2 {[%emt 0:00:54]} Rb2+ {[%emt 0:00:08]} 65. Kf3 $2 {[%emt 0:00:01]} (65. Kg3) 65... Rb3 $18 {[%emt 0:00:05]} 66. Rc5 {[%emt 0:00:12]} Ke6 {[%emt 0:01:34]} 67. Rc6+ {[%emt 0:00:28]} Kf7 {[%emt 0:00:58]} 68. Rc7+ {[%emt 0:00:51]} Kf6 {[%emt 0:00:06]} 69. Rxa7 {[%emt 0:01:09]} Rxb5 {[%emt 0:00:04]} 70. Ra8 {[%emt 0:00:28]} Ra5 {[%emt 0:00:04]} 71. Kg3 {[%emt 0:00:35]} Ra3 {[%emt 0:00:52]} 72. a7 {[%emt 0:00:19]} Kg7 {[%emt 0:00:18] [#]} 73. Kh4 $1 {[%emt 0:00:06]} Ra1 {[%emt 0:00:21]} 74. e4 {[%emt 0:00:28]} Rh1+ {[%emt 0:00:31]} 75. Kg3 {[%emt 0:00:04]} Rg1+ {[%emt 0:00:04]} 76. Kh2 {[%emt 0:00:24]} Ra1 {[%emt 0:00:05]} 77. Kg2 {[%emt 0:00:55]} Ra2+ {[%emt 0:00:05]} 78. Kg3 {[%emt 0:00:10]} Ra3+ {[%emt 0:00:19]} 79. Kh4 {[%emt 0:00:11]} Ra4 {[%emt 0:00:10]} 80. Kg5 {[%emt 0:00:59]} Ra1 {[%emt 0:01:10]} 81. e5 {[%emt 0:00:38]} Ra5 {[%emt 0:00:18]} 82. Kh4 {[%emt 0:00:50]} (82. f5 $142 gxf5 83. e6 (83. Kxh5 f4 $18) (83. Kxf5 h4 $18) 83... f4+ 84. Kxf4 Kf6 85. Rf8+ Kxe6 86. a8=Q (86. a8=B Ra2 $14) (86. a8=R Rc5 $18) 86... Rxa8 87. Rxa8) 82... Ra4 {[%emt 0:00:21]} 83. e6 {[%emt 0:00:36]} Rxf4+ {[%emt 0:00:54]} 84. Kg3 {[%emt 0:00:05]} 1-0

[Event "Slovakian ECo-C Extraliga 2024-25"]
[Site "Slovakia"]
[Date "2025.01.19"]
[Round "4.3"]
[White "Kriebel, Tadeas"]
[Black "Stachowiak, Kamil"]
[Result "1-0"]
[Annotator "TA"]
[ECO "B43"]
[WhiteElo "2510"]
[BlackElo "2413"]
[PlyCount "73"]
[EventDate "2024.09.12"]
[EventType "team-tourn"]
[EventCountry "SVK"]
[SourceTitle "playchess.com"]
[Source "ChessBase"]
[SourceQuality "1"]
[TimeControl "5400+30"]

{[%evp 9,73,31,37,37,39,41,47,42,43,45,54,45,53,48,43,43,72,62,67,66,69,55,89,84,113,124,133,118,131,94,87,85,112,92,97,103,93,102,103,104,103,113,94,110,152,144,153,152,141,157,180,145,175,160,352,325,341,335,326,315,299,301,482,475,451,449]} 1. e4 {[%emt 0:00:09]} c5 {[%emt 0:00:08]} 2. Nf3 {[%emt 0:00:11]} e6 {[%emt 0:00:13]} 3. d4 {[%emt 0:00:07]} cxd4 {[%emt 0:00:09]} 4. Nxd4 {[%emt 0:00:04]} a6 {[%emt 0:01:01]} 5. Nc3 {[%emt 0:00:08]} Qc7 {[%emt 0:02:20]} 6. Qd3 {[%emt 0:11:03] B43: Sicilian: Kan Variation: 5 Nc3.} Nc6 {[%emt 0:04:40]} 7. Nxc6 {[%emt 0:00:20]} bxc6 {[%emt 0:00:37]} 8. Qg3 {[%emt 0:00:05] White is slightly better.} Qxg3 {[%emt 0:10:11]} 9. hxg3 {[%emt 0:00:02][%cal Bh2g3,Bg3g4,Bg4g5][%mdl 32]} d5 {[%emt 0:00:29]} 10. g4 $1 {[%emt 0:00:05][%mdl 4] is more profitable than 10.Na4 at the moment.} Nf6 {[%emt 0:04:26]} 11. g5 {[%emt 0:00:07]} Nd7 {[%emt 0:02:00]} 12. Be3 {[%emt 0:02:48]} Bd6 $146 {[%emt 0:06:08]} (12... Bb4 13. Bd3 e5 14. exd5 cxd5 15. a3 Bxc3+ 16. bxc3 e4 17. Be2 O-O 18. c4 dxc4 19. Bxc4 {0-1 Prevolsek,M (2027)-Guillaume,M (1900) Split rapid op 6th 2024 (3)}) 13. O-O-O {[%emt 0:01:59]} Bb7 {[%emt 0:11:57]} 14. Rh4 {[%emt 0:03:13]} Ke7 {[%emt 0:05:09][%cal Be8e7,Be7f6,Bf6f7][%mdl 32]} 15. Be2 {[%emt 0:03:47]} f6 {[%emt 0:15:16]} 16. Rdh1 {[%emt 0:25:46]} Nf8 {[%emt 0:01:59]} 17. gxf6+ {[%emt 0:03:16]} Kxf6 {[%emt 0:03:20]} 18. f4 {[%emt 0:00:52] Threatens to win with e5+. White attacks} Kf7 {[%emt 0:01:44]} 19. f5 {[%emt 0:03:09]} exf5 {[%emt 0:07:40]} 20. exf5 {[%emt 0:00:36]} Nd7 {[%emt 0:05:58] [#]} 21. Ne4 $1 {[%emt 0:16:08] Dodges Nf6} Be7 {[%emt 0:12:44][%cal Oe7h4]} (21... dxe4 $2 22. Rd1 Be7 (22... Ke7 $2 23. Rxe4+ Ne5 24. Bg5+ Kd7 25. Rxe5 $18) 23. Rxd7 $18) 22. Ng5+ {[%emt 0:02:24]} ({Not} 22. Rxh7 Rxh7 23. Rxh7 dxe4 $17) 22... Bxg5 {[%emt 0:00:06]} 23. Bxg5 {[%emt 0:00:03]} Nf6 {[%emt 0:00:24] Black is weak on the dark squares} 24. Rb4 {[%emt 0:01:53]} Bc8 {[%emt 0:00:22]} 25. g4 $36 {[%emt 0:00:11][%mdl 2048] White has strong initiative. White has more active pieces.} Re8 {[%emt 0:03:10]} 26. Bf3 {[%emt 0:00:47]} h6 {[%emt 0:00:18]} 27. Bxf6 {[%emt 0:03:37]} Kxf6 {[%emt 0:00:06]} 28. Rb6 $1 {[%emt 0:00:09][%csl LRc6,LRd5]} Bd7 {[%emt 0:00:53]} 29. Bxd5 {[%emt 0:00:08]} Rec8 {[%emt 0:00:24]} 30. Re1 {[%emt 0:03:05]} a5 {[%emt 0:00:45]} 31. Rb7 {[%emt 0:01:01]} Rd8 $2 {[%emt 0:00:46] [#]} (31... Re8 $16 32. Rxe8 Bxe8) 32. Rxd7 $1 {[%emt 0:01:08][%mdl 512]} Rxd7 {[%emt 0:00:26]} 33. Bxc6 {[%emt 0:00:09]} Rad8 {[%emt 0:00:30]} 34. Bxd7 {[%emt 0:00:05]} Rxd7 {[%emt 0:00:01]} 35. Re6+ {[%emt 0:00:07]} Kg5 $2 {[%emt 0:01:07]} (35... Kf7 {is a better defense.} 36. c3 Rd5) 36. Rg6+ $18 {[%emt 0:00:15]} Kf4 {[%emt 0:00:03]} 37. b3 {[%emt 0:01:16] Weighted Error Value: White=0.07 (flawless) /Black=0.24 (precise)   Loses game:     	---       	Black=1      Mistake:       	---       	Black=1      Inaccurate:     	---       	Black=5      OK:         	White=16    	Black=14     Best:        	White=3     	Black=1} 1-0

[Event "Slovakian ECo-C Extraliga 2024-25"]
[Site "Slovakia"]
[Date "2025.01.19"]
[Round "4.3"]
[White "Gonda Laszlo"]
[Black "Stohl, Igor"]
[Result "1/2-1/2"]
[Annotator "TA"]
[ECO "B10"]
[WhiteElo "2485"]
[BlackElo "2410"]
[PlyCount "56"]
[EventDate "2024.09.12"]
[EventType "team-tourn"]
[EventCountry "SVK"]
[SourceTitle "playchess.com"]
[Source "ChessBase"]
[SourceQuality "1"]
[TimeControl "5400+30"]

{[%evp 9,56,-4,0,3,10,6,13,0,7,21,15,8,27,16,6,0,0,17,6,-14,19,0,30,25,35,16,16,12,19,11,31,0,40,34,53,41,62,20,26,13,12,16,20,0,0,0,0,0,0]} 1. e4 {[%emt 0:00:47]} c6 {[%emt 0:01:24]} 2. Nf3 {[%emt 0:00:21]} d5 {[%emt 0:00:29]} 3. d3 {[%emt 0:02:21]} dxe4 {[%emt 0:04:23]} 4. dxe4 {[%emt 0:00:07]} Qxd1+ {[%emt 0:00:06]} 5. Kxd1 {[%emt 0:00:08]} Nd7 {[%emt 0:00:28]} 6. a4 {[%emt 0:11:29][%cal Ba2a4,Ba4a5][%mdl 32] B10: Caro-Kann: 2 d3 and 2 c4.} Ngf6 {[%emt 0:06:10]} 7. Nfd2 {[%emt 0:00:07][%cal Bf3d2,Bd2b3,Bb3d4,Bd4f5][%mdl 32]} g5 {[%emt 0:02:53]} 8. a5 {[%emt 0:13:01]} h5 {[%emt 0:09:21]} 9. Nc3 {[%emt 0:12:48]} g4 $146 {[%emt 0:07:09]} (9... Nc5 10. f3 g4 11. Nc4 Be6 12. Be3 Bxc4 13. Bxc4 Ncd7 14. Be2 e6 15. Ke1 gxf3 16. gxf3 {½-½ Boulanger,M (2367)-Egan,M (2292) CAN-ch77 email 2022}) 10. Nb3 {[%emt 0:12:40]} Bh6 {[%emt 0:15:28]} 11. Bxh6 {[%emt 0:21:12]} Rxh6 {[%emt 0:00:13]} 12. Kd2 {[%emt 0:00:30]} Ne5 {[%emt 0:14:52]} 13. Ke3 {[%emt 0:00:08]} Be6 {[%emt 0:04:06]} 14. Rd1 {[%emt 0:04:40]} Rd8 {[%emt 0:08:57]} (14... Bxb3 15. cxb3 e6 16. f4 gxf3 17. gxf3 Rg6) 15. Nd4 {[%emt 0:08:44]} (15. Nc5 {simplifies} Rxd1 16. Nxd1 Bc8 17. Kd4) 15... Bc8 {[%emt 0:07:47] A sharp opening} 16. Be2 {[%emt 0:00:10]} h4 {[%emt 0:01:20]} 17. Nf5 {[%emt 0:01:46]} (17. f4 {looks sharper.} gxf3 18. gxf3 Rg6 19. a6) 17... Rxd1 {[%emt 0:04:46]} 18. Rxd1 {[%emt 0:00:27]} Rh8 {[%emt 0:00:27]} 19. Rg1 {[%emt 0:04:47]} e6 {[%emt 0:04:03]} 20. Nd4 {[%emt 0:01:57][%cal Oa5a6]} Ke7 {[%emt 0:01:01]} 21. f4 {[%emt 0:00:22]} gxf3 {[%emt 0:00:30]} 22. gxf3 {[%emt 0:00:02]} Ng6 {[%emt 0:02:06]} 23. f4 {[%emt 0:00:48] White is more active.} e5 {[%emt 0:00:48]} 24. fxe5 {[%emt 0:00:26]} Nxe5 {[%emt 0:00:02] The position is equal.} 25. Rg5 {[%emt 0:02:18]} Kd6 {[%emt 0:02:08]} (25... Neg4+ 26. Kf4 Nf2 (26... Nxh2 27. e5 $16) 27. Rc5) 26. Ncb5+ {[%emt 0:00:50]} cxb5 {[%emt 0:00:24]} 27. Nxb5+ {[%emt 0:00:03]} Ke6 {[%emt 0:00:09] [#] ...a6 would now be deadly.} 28. Nd4+ {[%emt 0:00:03]} Kd6 {[%emt 0:00:07] Weighted Error Value: White=0.11 (very precise) /Black=0.10 (very precise)   Inaccurate:     	White=2     	Black=3      OK:         	White=5     	Black=6      Best:        	White=1     	Black=4} 1/2-1/2

[Event "Slovakian ECo-C Extraliga 2024-25"]
[Site "Slovakia"]
[Date "2025.01.19"]
[Round "4.3"]
[White "Bures Jaroslav"]
[Black "Kusa, Jakub"]
[Result "1/2-1/2"]
[Annotator "TA"]
[ECO "C44"]
[WhiteElo "2402"]
[BlackElo "2401"]
[PlyCount "57"]
[EventDate "2024.09.12"]
[EventType "team-tourn"]
[EventCountry "SVK"]
[SourceTitle "playchess.com"]
[Source "ChessBase"]
[SourceQuality "1"]
[TimeControl "5400+30"]

{[%evp 9,57,0,17,-18,-8,-14,-14,-10,-14,-21,-14,-31,1,0,14,-53,-37,-39,-52,-43,30,31,54,57,55,-42,-39,-45,0,0,0,-5,-10,-25,-36,-36,-57,-55,-27,-72,0,0,0,0,0,0,0,0,0,0]} 1. e4 {[%emt 0:00:04]} e5 {[%emt 0:00:10]} 2. Nf3 {[%emt 0:00:04]} Nc6 {[%emt 0:00:09]} 3. d4 {[%emt 0:00:02]} exd4 {[%emt 0:00:12]} 4. Nxd4 {[%emt 0:00:03]} Nf6 {[%emt 0:00:11]} 5. Nxc6 {[%emt 0:00:03]} bxc6 {[%emt 0:00:15]} 6. Qe2 {[%emt 0:00:02]} Bc5 {[%emt 0:00:55] With the idea ...0-0.} 7. e5 {[%emt 0:00:01]} Nd5 {[%emt 0:00:46]} 8. c4 {[%emt 0:00:02]} Nb6 {[%emt 0:00:47]} 9. Qg4 {[%emt 0:00:01]} g6 {[%emt 0:01:45]} 10. Nc3 {[%emt 0:00:07]} d5 {[%emt 0:06:42]} (10... Qe7 {simplifies} 11. Qg5 O-O 12. Qxe7 Bxe7 13. Be2 f6) 11. Qg3 {[%emt 0:03:31]} O-O {[%emt 0:02:02]} 12. Bh6 {[%emt 0:07:47]} ({White should play} 12. Bg5 $11 Qd7 13. cxd5) 12... Re8 $1 $15 {[%emt 0:00:35]} 13. O-O-O $1 {[%emt 0:00:02]} Qe7 {[%emt 0:05:40]} 14. cxd5 {[%emt 0:03:46]} Nxd5 {[%emt 0:04:22]} (14... cxd5 $15 15. f4 Bb4) 15. Bc4 $1 $11 {[%emt 0:21:42]} Nxc3 {[%emt 0:06:00]} 16. Qxc3 {[%emt 0:00:16]} Bb4 {[%emt 0:00:12]} 17. Qf3 {[%emt 0:04:40]} (17. Qe3 $14) 17... Be6 $36 {[%emt 0:02:39][%mdl 2048] Black has some pressure.} 18. Rd4 {[%emt 0:04:48] [#] Black must now prevent Bxe6.} Rad8 {[%emt 0:14:15]} 19. Rxd8 {[%emt 0:07:17]} Rxd8 {[%emt 0:00:35]} 20. Bxe6 {[%emt 0:02:12]} Qxe6 {[%emt 0:00:17]} 21. Rd1 {[%emt 0:00:17] Some like it hot} Qc4+ {[%emt 0:06:15]} 22. Kb1 {[%emt 0:00:07]} Rxd1+ {[%emt 0:02:46]} 23. Qxd1 {[%emt 0:00:05][%mdl 4096] [#] Endgame. Qd8+ would kill now. KQB-KQB} Qe4+ {[%emt 0:00:25]} 24. Ka1 {[%emt 0:07:33] Intending Qd8+ and mate.} Bf8 {[%emt 0:01:42]} ({Not} 24... Qxe5 25. Qd8+) (24... Be7 $1 $17 25. g3 Qxe5) 25. Bxf8 $11 {[%emt 0:00:30] The position is equal.} Kxf8 {[%emt 0:00:08]} 26. Qd8+ {[%emt 0:00:05]} Kg7 {[%emt 0:00:11] ( -> ...Qe1+)} 27. Qf6+ {[%emt 0:00:03]} Kg8 {[%emt 0:00:48][%cal Re4e1]} 28. a3 {[%emt 0:01:47]} Qxg2 {[%emt 0:00:38]} 29. Qd8+ {Weighted Error Value: White=0.18 (very precise) /Black=0.17 (very precise) .  Mistake:       	White=2     	Black=2      Inaccurate:     	White=1     	Black=2      OK:         	White=5     	Black=10     Best:        	White=7     	---        Strong:       	White=2     	Black=1} 1/2-1/2

[Event "Slovakian ECo-C Extraliga 2024-25"]
[Site "Slovakia"]
[Date "2025.01.19"]
[Round "4.3"]
[White "Ongut, Tamas Gunes"]
[Black "Nemeth, Miklos"]
[Result "1/2-1/2"]
[Annotator "TA"]
[ECO "C93"]
[WhiteElo "2262"]
[BlackElo "2424"]
[PlyCount "46"]
[EventDate "2024.09.12"]
[EventType "team-tourn"]
[EventCountry "SVK"]
[SourceTitle "playchess.com"]
[Source "ChessBase"]
[SourceQuality "1"]
[TimeControl "5400+30"]

{[%evp 18,46,46,45,45,36,45,16,50,23,31,36,22,19,37,43,135,126,122,38,33,38,33,37,32,29,17,18,16,10,19]} 1. e4 {[%emt 0:00:09]} e5 {[%emt 0:00:07]} 2. Nf3 {[%emt 0:00:07]} Nc6 {[%emt 0:00:03]} 3. Bb5 {[%emt 0:00:11]} a6 {[%emt 0:00:17]} 4. Ba4 {[%emt 0:00:09]} Nf6 {[%emt 0:00:06]} 5. O-O {[%emt 0:00:09]} Be7 {[%emt 0:00:21]} 6. Re1 {[%emt 0:00:09]} b5 {[%emt 0:00:06]} 7. Bb3 {[%emt 0:00:06]} d6 {[%emt 0:00:26]} 8. c3 {[%emt 0:00:21]} O-O {[%emt 0:00:14]} 9. h3 {[%emt 0:00:08]} h6 {[%emt 0:03:43] 9...Bb7 gains popularity.} 10. d4 {[%emt 0:00:09]} Bd7 {[%emt 0:00:06] C93: Closed Ruy Lopez: Smyslov Variation.} 11. a3 {[%emt 0:05:24]} a5 {[%emt 0:02:46]} 12. d5 $146 {[%emt 0:07:14]} (12. Nbd2 a4 13. Ba2 Qb8 14. Nf1 Qb7 15. Ng3 Rad8 16. Nh4 Rfe8 17. Nhf5 Bf8 18. Qf3 exd4 19. Nxh6+ gxh6 20. Qxf6 Be6 21. Bxh6 Bxa2 22. Bxf8 Kxf8 23. Nf5 Re6 24. Qh8# {1-0 Maltsevskaya,A (2374)-Lin,B (2111) Titled Tuesday intern op 26th Mar Late blitz 2024 (11)}) 12... Na7 {[%emt 0:01:38]} 13. c4 {[%emt 0:02:07][%cal Oc4c5]} c6 {[%emt 0:09:57]} 14. dxc6 {[%emt 0:18:26]} Bxc6 {[%emt 0:01:32]} 15. Nc3 {[%emt 0:00:09]} bxc4 {[%emt 0:07:56]} 16. Bxc4 {[%emt 0:00:09]} Qc7 {[%emt 0:00:05] [#]} (16... Nc8 $14) 17. Nh4 $1 $16 {[%emt 0:12:32] White is more active.} Bxe4 {[%emt 0:21:51]} 18. Nxe4 {[%emt 0:00:20]} (18. Rxe4 $16 Nxe4 19. Nxe4 Qxc4 (19... Bxh4 20. Qg4 $14) 20. Qg4) 18... Qxc4 $14 {[%emt 0:00:19]} 19. Nf5 {[%emt 0:00:10]} (19. Nxd6 $2 Bxd6 (19... Qxh4 20. Nf5 $18) 20. Qxd6 Nb5 $19 (20... Qxh4 $2 21. Be3 $19)) 19... Qe6 {[%emt 0:00:51]} 20. Nxe7+ {[%emt 0:07:45]} (20. Nfxd6 $2 {loses.} Rfd8 21. Qa4 (21. Nxf6+ $2 Bxf6 22. Qf3 Qxd6 $19) 21... Bxd6 $19) (20. Nexd6 $2 Bxd6 21. Qxd6 (21. Nxd6 $2 Rfd8 $19) 21... Qxf5 $19) 20... Qxe7 {[%emt 0:00:34]} 21. Qxd6 {[%emt 0:00:08]} Qxd6 {[%emt 0:01:09]} 22. Nxd6 {[%emt 0:00:08]} Nc6 {[%emt 0:10:41]} 23. Be3 {[%emt 0:01:17]} Rfd8 {[%emt 0:03:45] Weighted Error Value: White=0.13 (very precise) /Black=0.16 (very precise)   Mistake:       	White=1     	Black=1      Inaccurate:     	White=2     	Black=1      OK:         	White=4     	Black=4      Best:        	White=1     	Black=1      Strong:       	White=1     	---} 1/2-1/2